[Event "*** Titled Tuesday Blitz"]
[Site "Chess.com"]
[Date "2020.10.20"]
[Round "1"]
[White "cukin84"]
[Black "pedromartinez91"]
[Result "0-1"]
[WhiteElo "2034"]
[BlackElo "2477"]
[TimeControl "180+1"]
[EndTime "10:05:29 PDT"]
[Termination "pedromartinez91 won by resignation"]

1. e4 {[%clk 0:02:59.6]} 1... e6 {[%clk 0:02:59.7]} 2. d4 {[%clk 0:02:58]} 2...
d5 {[%clk 0:03:00.1]} 3. Nc3 {[%clk 0:02:57.2]} 3... Nf6 {[%clk 0:03:00.3]} 4.
e5 {[%clk 0:02:57.3]} 4... Ne4 {[%clk 0:03:00.8]} 5. Nxe4 {[%clk 0:02:56.5]}
5... dxe4 {[%clk 0:03:01.7]} 6. c3 {[%clk 0:02:56]} 6... c5 {[%clk 0:03:01.3]}
7. Be3 {[%clk 0:02:53.4]} 7... cxd4 {[%clk 0:03:01.1]} 8. cxd4 {[%clk
0:02:52.7]} 8... Bb4+ {[%clk 0:03:00]} 9. Bd2 {[%clk 0:02:52.8]} 9... Qxd4
{[%clk 0:02:59.4]} 10. Ne2 {[%clk 0:02:49.4]} 10... Qxb2 {[%clk 0:02:47.2]} 11.
Bxb4 {[%clk 0:02:36.9]} 11... Qxb4+ {[%clk 0:02:48.1]} 12. Qd2 {[%clk
0:02:37.1]} 12... Qxd2+ {[%clk 0:02:47.6]} 13. Kxd2 {[%clk 0:02:36.2]} 13... Nc6
{[%clk 0:02:48.3]} 14. Nc3 {[%clk 0:02:34.3]} 14... Nxe5 {[%clk 0:02:48.4]} 15.
Nxe4 {[%clk 0:02:34.1]} 15... O-O {[%clk 0:02:42.6]} 16. Bb5 {[%clk 0:02:31.8]}
16... Bd7 {[%clk 0:02:26.7]} 17. Be2 {[%clk 0:02:29.1]} 17... Rfb8 {[%clk
0:02:26.1]} 18. Rhc1 {[%clk 0:02:24.4]} 18... Bc6 {[%clk 0:02:25.7]} 19. f3
{[%clk 0:02:09.6]} 19... Bxe4 {[%clk 0:02:20.1]} 20. fxe4 {[%clk 0:02:09.1]}
20... Rc8 {[%clk 0:02:19.9]} 21. Ke3 {[%clk 0:02:05.2]} 21... Kf8 {[%clk
0:02:19.3]} 22. h3 {[%clk 0:02:01.2]} 22... Ke7 {[%clk 0:02:14.6]} 23. g4 {[%clk
0:02:00.9]} 23... g5 {[%clk 0:02:01.1]} 24. Rab1 {[%clk 0:01:57.3]} 24... b6
{[%clk 0:01:54.1]} 25. Bb5 {[%clk 0:01:49.1]} 25... f6 {[%clk 0:01:48.2]} 26. a4
{[%clk 0:01:42.3]} 26... Rab8 {[%clk 0:01:45.4]} 27. Ba6 {[%clk 0:01:41.9]}
27... Rxc1 {[%clk 0:01:43.3]} 28. Rxc1 {[%clk 0:01:41.9]} 28... Rd8 {[%clk
0:01:44]} 29. Rc7+ {[%clk 0:01:41.2]} 29... Rd7 {[%clk 0:01:44]} 30. Rc8 {[%clk
0:01:41.5]} 30... Rd1 {[%clk 0:01:14.9]} 31. Rc7+ {[%clk 0:01:40.1]} 31... Kd6
{[%clk 0:01:04.3]} 32. Rxh7 {[%clk 0:01:38.7]} 32... Re1+ {[%clk 0:01:04.3]} 33.
Kf2 {[%clk 0:01:37.7]} 33... Rxe4 {[%clk 0:01:01.9]} 34. Rxa7 {[%clk 0:01:36.7]}
34... Rxa4 {[%clk 0:01:00.8]} 35. Ra8 {[%clk 0:01:34.7]} 35... Nd3+ {[%clk
0:00:51.9]} 36. Kg3 {[%clk 0:01:31.5]} 36... Nc5 {[%clk 0:00:51.6]} 37. Rd8+
{[%clk 0:01:29.5]} 37... Ke5 {[%clk 0:00:51.9]} 0-1

[Event "*** Titled Tuesday Blitz"]
[Site "Chess.com"]
[Date "2020.10.20"]
[Round "1"]
[White "Zkid"]
[Black "MFBerna"]
[Result "1-0"]
[WhiteElo "2823"]
[BlackElo "2412"]
[TimeControl "180+1"]
[EndTime "10:05:38 PDT"]
[Termination "Zkid won by resignation"]

1. e4 {[%clk 0:02:59.4]} 1... c6 {[%clk 0:02:48.6]} 2. d4 {[%clk 0:02:58.8]}
2... d5 {[%clk 0:02:47.1]} 3. exd5 {[%clk 0:02:59.7]} 3... cxd5 {[%clk
0:02:46.2]} 4. Bd3 {[%clk 0:02:56.3]} 4... Nf6 {[%clk 0:02:46.4]} 5. c3 {[%clk
0:02:55.6]} 5... Nc6 {[%clk 0:02:47.3]} 6. Bf4 {[%clk 0:02:54.7]} 6... g6 {[%clk
0:02:45.8]} 7. h3 {[%clk 0:02:53]} 7... Bg7 {[%clk 0:02:46]} 8. Nf3 {[%clk
0:02:53.4]} 8... O-O {[%clk 0:02:46.4]} 9. O-O {[%clk 0:02:53.4]} 9... Bf5
{[%clk 0:02:46.2]} 10. Be2 {[%clk 0:02:53.2]} 10... Ne4 {[%clk 0:02:44.3]} 11.
Nbd2 {[%clk 0:02:52.8]} 11... a6 {[%clk 0:02:40.7]} 12. a4 {[%clk 0:02:50.9]}
12... Rc8 {[%clk 0:02:37.2]} 13. Re1 {[%clk 0:02:48]} 13... Nxd2 {[%clk
0:02:27.7]} 14. Qxd2 {[%clk 0:02:41.3]} 14... Na5 {[%clk 0:02:23.8]} 15. Qe3
{[%clk 0:02:32.5]} 15... Re8 {[%clk 0:02:12.2]} 16. Bh6 {[%clk 0:02:31.3]} 16...
Nc4 {[%clk 0:01:47.6]} 17. Bxc4 {[%clk 0:02:30.8]} 17... Rxc4 {[%clk 0:01:45.3]}
18. Bxg7 {[%clk 0:02:21.7]} 18... Kxg7 {[%clk 0:01:46.2]} 19. Ne5 {[%clk
0:02:18.4]} 19... Rc8 {[%clk 0:01:38.9]} 20. Qf4 {[%clk 0:02:11.4]} 20... Qd6
{[%clk 0:01:26.8]} 21. g4 {[%clk 0:02:06.9]} 21... Be6 {[%clk 0:01:27.1]} 22.
Nd3 {[%clk 0:02:05.8]} 22... Bd7 {[%clk 0:01:01.2]} 23. Qxd6 {[%clk 0:02:01.9]}
23... exd6 {[%clk 0:01:02.1]} 24. a5 {[%clk 0:02:02.4]} 24... g5 {[%clk
0:00:58.3]} 25. Rxe8 {[%clk 0:01:56.5]} 25... Rxe8 {[%clk 0:00:57.5]} 26. Re1
{[%clk 0:01:57.1]} 26... Be6 {[%clk 0:00:44.7]} 27. f4 {[%clk 0:01:54]} 27... h6
{[%clk 0:00:28.6]} 28. Nb4 {[%clk 0:01:52.6]} 28... gxf4 {[%clk 0:00:15.1]} 29.
Nxd5 {[%clk 0:01:51.7]} 29... f3 {[%clk 0:00:12.9]} 30. Kf2 {[%clk 0:01:49]}
30... Rc8 {[%clk 0:00:07.2]} 31. Nf4 {[%clk 0:01:48.8]} 31... Bb3 {[%clk
0:00:04.9]} 32. Re7 {[%clk 0:01:45.9]} 32... Rc4 {[%clk 0:00:02.1]} 33. Rxb7
{[%clk 0:01:44.7]} 33... Ra4 {[%clk 0:00:02.9]} 34. Rxb3 {[%clk 0:01:44.5]} 1-0

[Event "*** Titled Tuesday Blitz"]
[Site "Chess.com"]
[Date "2020.10.20"]
[Round "1"]
[White "Astaneh"]
[Black "Stalri"]
[Result "1-0"]
[WhiteElo "2514"]
[BlackElo "2147"]
[TimeControl "180+1"]
[EndTime "10:05:41 PDT"]
[Termination "Astaneh won by resignation"]

1. d4 {[%clk 0:02:59.6]} 1... g6 {[%clk 0:02:59.9]} 2. Nf3 {[%clk 0:02:59.4]}
2... Bg7 {[%clk 0:03:00.2]} 3. Nc3 {[%clk 0:02:59.5]} 3... d5 {[%clk 0:02:58.3]}
4. e4 {[%clk 0:02:58.8]} 4... dxe4 {[%clk 0:02:57.7]} 5. Nxe4 {[%clk 0:02:59.7]}
5... Nf6 {[%clk 0:02:58]} 6. Nxf6+ {[%clk 0:02:59.2]} 6... Bxf6 {[%clk
0:02:58.2]} 7. h3 {[%clk 0:02:59.7]} 7... O-O {[%clk 0:02:57.3]} 8. c3 {[%clk
0:02:59.2]} 8... c5 {[%clk 0:02:56.6]} 9. dxc5 {[%clk 0:02:55.8]} 9... Nd7
{[%clk 0:02:51.4]} 10. Be3 {[%clk 0:02:40]} 10... Qc7 {[%clk 0:02:47.1]} 11. Qd5
{[%clk 0:02:37.2]} 11... a5 {[%clk 0:02:29.9]} 12. Bb5 {[%clk 0:02:32.1]} 12...
a4 {[%clk 0:02:23.1]} 13. O-O-O {[%clk 0:02:28.8]} 13... a3 {[%clk 0:02:08.3]}
14. Bxd7 {[%clk 0:02:21.6]} 14... axb2+ {[%clk 0:02:08]} 15. Kb1 {[%clk
0:01:50.2]} 15... Rd8 {[%clk 0:02:03.5]} 16. c6 {[%clk 0:01:47.6]} 16... bxc6
{[%clk 0:01:56.9]} 17. Qxc6 {[%clk 0:01:47]} 17... Qa5 {[%clk 0:01:06.2]} 18. a4
{[%clk 0:01:46.6]} 18... Ba6 {[%clk 0:00:28.7]} 19. Bb6 {[%clk 0:01:39.1]} 19...
Qxc3 {[%clk 0:00:09.2]} 20. Qxc3 {[%clk 0:01:37.8]} 20... Bxc3 {[%clk
0:00:09.4]} 21. Bxd8 {[%clk 0:01:36.1]} 21... Rxd8 {[%clk 0:00:10.3]} 22. Bb5
{[%clk 0:01:35.2]} 22... Rxd1+ {[%clk 0:00:07.9]} 23. Rxd1 {[%clk 0:01:36.1]}
23... Bb7 {[%clk 0:00:08.6]} 24. Rd7 {[%clk 0:01:28.3]} 24... Be4+ {[%clk
0:00:08.2]} 25. Bd3 {[%clk 0:01:28.7]} 25... Bc6 {[%clk 0:00:08.8]} 26. Rc7
{[%clk 0:01:27.4]} 26... Bxf3 {[%clk 0:00:08.7]} 27. gxf3 {[%clk 0:01:25.9]}
27... Be5 {[%clk 0:00:09.6]} 28. Rxe7 {[%clk 0:01:25]} 28... Bf6 {[%clk
0:00:09.1]} 29. Rd7 {[%clk 0:01:25.8]} 1-0

[Event "*** Titled Tuesday Blitz"]
[Site "Chess.com"]
[Date "2020.10.20"]
[Round "1"]
[White "Savagelittlemole"]
[Black "sopo-tereladze"]
[Result "1-0"]
[WhiteElo "2612"]
[BlackElo "2287"]
[TimeControl "180+1"]
[EndTime "10:05:48 PDT"]
[Termination "Savagelittlemole won by resignation"]

1. e4 {[%clk 0:02:59.9]} 1... e5 {[%clk 0:02:58.8]} 2. Nf3 {[%clk 0:02:59.5]}
2... Nc6 {[%clk 0:02:58.1]} 3. Bb5 {[%clk 0:02:59.5]} 3... a6 {[%clk 0:02:57.5]}
4. Ba4 {[%clk 0:02:59.5]} 4... Nf6 {[%clk 0:02:56.9]} 5. O-O {[%clk 0:02:58.7]}
5... Be7 {[%clk 0:02:56.6]} 6. Bxc6 {[%clk 0:02:57.1]} 6... dxc6 {[%clk
0:02:53.6]} 7. Nxe5 {[%clk 0:02:57.3]} 7... Nxe4 {[%clk 0:02:53.4]} 8. Re1
{[%clk 0:02:55.1]} 8... Nf6 {[%clk 0:02:52.8]} 9. d4 {[%clk 0:02:51.8]} 9... O-O
{[%clk 0:02:51.6]} 10. Nc3 {[%clk 0:02:50.5]} 10... Be6 {[%clk 0:02:46.3]} 11.
Bg5 {[%clk 0:02:48.9]} 11... h6 {[%clk 0:02:43.8]} 12. Bh4 {[%clk 0:02:48.9]}
12... Re8 {[%clk 0:02:29.1]} 13. Qf3 {[%clk 0:02:43.7]} 13... Nd5 {[%clk
0:02:23.6]} 14. Bxe7 {[%clk 0:02:42.5]} 14... Qxe7 {[%clk 0:02:20.7]} 15. Rad1
{[%clk 0:02:36]} 15... Qf6 {[%clk 0:02:11.4]} 16. Qg3 {[%clk 0:02:27.3]} 16...
Nxc3 {[%clk 0:02:09.7]} 17. Qxc3 {[%clk 0:02:26.5]} 17... Rad8 {[%clk 0:02:09]}
18. Re3 {[%clk 0:02:24.5]} 18... Bf5 {[%clk 0:01:49.7]} 19. h3 {[%clk
0:02:19.4]} 19... Re6 {[%clk 0:01:49.3]} 20. Rde1 {[%clk 0:02:06.4]} 20... Rde8
{[%clk 0:01:48.2]} 21. Nf3 {[%clk 0:02:03.3]} 21... Rxe3 {[%clk 0:01:37]} 22.
Rxe3 {[%clk 0:02:04.2]} 22... Rxe3 {[%clk 0:01:36]} 23. fxe3 {[%clk 0:02:04.5]}
23... Be4 {[%clk 0:01:35.7]} 24. Nd2 {[%clk 0:02:01.5]} 24... Qg6 {[%clk
0:01:31.9]} 25. Nxe4 {[%clk 0:02:00.6]} 25... Qxe4 {[%clk 0:01:32.8]} 26. Qd3
{[%clk 0:01:59.7]} 26... Qd5 {[%clk 0:01:26.3]} 27. c4 {[%clk 0:01:58.1]} 27...
Qd6 {[%clk 0:01:23.7]} 28. b3 {[%clk 0:01:53.4]} 28... c5 {[%clk 0:01:22.6]} 29.
Qe4 {[%clk 0:01:51.6]} 29... cxd4 {[%clk 0:01:20.9]} 30. exd4 {[%clk 0:01:52.5]}
30... c6 {[%clk 0:01:20.7]} 31. Kh1 {[%clk 0:01:48.5]} 31... Qe6 {[%clk
0:01:16.7]} 32. Qxe6 {[%clk 0:01:41.2]} 32... fxe6 {[%clk 0:01:17.6]} 33. Kh2
{[%clk 0:01:40.9]} 33... Kf7 {[%clk 0:01:17.6]} 34. Kg3 {[%clk 0:01:41]} 34...
Kf6 {[%clk 0:01:17.5]} 35. Kf4 {[%clk 0:01:41.4]} 35... b6 {[%clk 0:01:08.2]}
36. Ke4 {[%clk 0:01:31.7]} 36... g5 {[%clk 0:00:54.6]} 37. g4 {[%clk 0:01:31]}
37... Kf7 {[%clk 0:00:50.5]} 38. Ke5 {[%clk 0:01:29.7]} 38... Ke7 {[%clk
0:00:50.6]} 39. b4 {[%clk 0:01:25.7]} 39... b5 {[%clk 0:00:46.8]} 40. c5 {[%clk
0:01:21.6]} 40... Kf7 {[%clk 0:00:43.2]} 41. Kd6 {[%clk 0:01:21.6]} 41... Kf6
{[%clk 0:00:44.1]} 42. Kxc6 {[%clk 0:01:21.7]} 42... e5 {[%clk 0:00:45]} 43.
dxe5+ {[%clk 0:01:21]} 43... Kxe5 {[%clk 0:00:45.9]} 44. Kb7 {[%clk 0:01:20.6]}
1-0

[Event "*** Titled Tuesday Blitz"]
[Site "Chess.com"]
[Date "2020.10.20"]
[Round "1"]
[White "Shahinyan_ChessMood"]
[Black "ChelsieMonica"]
[Result "1-0"]
[WhiteElo "2737"]
[BlackElo "2369"]
[TimeControl "180+1"]
[EndTime "10:05:50 PDT"]
[Termination "Shahinyan_ChessMood won by resignation"]

1. e4 {[%clk 0:02:59.4]} 1... e5 {[%clk 0:02:59.7]} 2. Nf3 {[%clk 0:02:58.5]}
2... Nc6 {[%clk 0:03:00.3]} 3. d4 {[%clk 0:02:59.2]} 3... exd4 {[%clk
0:02:59.7]} 4. Nxd4 {[%clk 0:03:00.1]} 4... Bc5 {[%clk 0:02:59.8]} 5. Nb3 {[%clk
0:03:00.1]} 5... Bb4+ {[%clk 0:03:00.2]} 6. Nc3 {[%clk 0:03:01]} 6... Be7 {[%clk
0:03:00.9]} 7. Be3 {[%clk 0:02:53.6]} 7... Nf6 {[%clk 0:03:00.6]} 8. Be2 {[%clk
0:02:51.2]} 8... d6 {[%clk 0:03:00.7]} 9. Qd2 {[%clk 0:02:51.7]} 9... O-O {[%clk
0:03:01.6]} 10. f3 {[%clk 0:02:46.8]} 10... a5 {[%clk 0:03:01.7]} 11. a3 {[%clk
0:02:43.7]} 11... a4 {[%clk 0:03:02]} 12. Nd4 {[%clk 0:02:43.6]} 12... Nxd4
{[%clk 0:03:00.6]} 13. Bxd4 {[%clk 0:02:44.5]} 13... c5 {[%clk 0:03:00.1]} 14.
Be3 {[%clk 0:02:43.2]} 14... Be6 {[%clk 0:02:58.8]} 15. O-O-O {[%clk 0:02:42.8]}
15... b5 {[%clk 0:02:57.5]} 16. Bxb5 {[%clk 0:02:41.3]} 16... Qb6 {[%clk
0:02:57.5]} 17. Qe2 {[%clk 0:02:18.4]} 17... Rfb8 {[%clk 0:02:56]} 18. Kd2
{[%clk 0:02:07.8]} 18... d5 {[%clk 0:02:51.9]} 19. exd5 {[%clk 0:01:57]} 19...
Nxd5 {[%clk 0:02:51.6]} 20. Nxd5 {[%clk 0:01:55.5]} 20... Bxd5 {[%clk
0:02:52.5]} 21. c4 {[%clk 0:01:42.2]} 21... Qa5+ {[%clk 0:02:40.4]} 22. Kc1
{[%clk 0:01:40]} 22... Be6 {[%clk 0:02:26.7]} 23. Rd2 {[%clk 0:01:32.5]} 23...
Rxb5 {[%clk 0:02:19.1]} 24. cxb5 {[%clk 0:01:31.5]} 24... c4 {[%clk 0:02:20]}
25. Rc2 {[%clk 0:01:26.1]} 25... Qxb5 {[%clk 0:02:16.9]} 26. Rd1 {[%clk
0:01:21.3]} 26... h6 {[%clk 0:02:15.5]} 27. g4 {[%clk 0:01:17.5]} 27... Rb8
{[%clk 0:02:13.9]} 28. Bd4 {[%clk 0:01:17.8]} 28... Bg5+ {[%clk 0:02:12.3]} 29.
Kb1 {[%clk 0:01:16.2]} 29... Be7 {[%clk 0:02:08.8]} 30. Qe5 {[%clk 0:01:14.9]}
30... Qxe5 {[%clk 0:01:57.8]} 31. Bxe5 {[%clk 0:01:15.8]} 31... Rb5 {[%clk
0:01:57.7]} 32. Bd6 {[%clk 0:01:15.3]} 32... Bf6 {[%clk 0:01:57.7]} 33. Bb4
{[%clk 0:01:15.6]} 33... h5 {[%clk 0:01:56.3]} 34. h3 {[%clk 0:01:15.7]} 34...
hxg4 {[%clk 0:01:49.5]} 35. hxg4 {[%clk 0:01:16.6]} 35... Kh7 {[%clk 0:01:42.3]}
36. Rd6 {[%clk 0:01:01.3]} 36... Be7 {[%clk 0:01:36.4]} 37. Rxe6 {[%clk
0:00:51.2]} 37... Bxb4 {[%clk 0:01:34.8]} 38. Rh2+ {[%clk 0:00:49.8]} 38... Kg8
{[%clk 0:01:32.3]} 39. Re8+ {[%clk 0:00:49.7]} 39... Bf8 {[%clk 0:01:32.9]} 40.
Rd2 {[%clk 0:00:49.2]} 40... c3 {[%clk 0:01:27.5]} 41. Rdd8 {[%clk 0:00:49.5]}
41... Rxb2+ {[%clk 0:01:27.7]} 42. Kc1 {[%clk 0:00:50]} 42... Ra2 {[%clk
0:01:22.2]} 43. Rxf8+ {[%clk 0:00:49.5]} 43... Kh7 {[%clk 0:01:23.1]} 44. Rxf7
{[%clk 0:00:49.9]} 1-0

[Event "*** Titled Tuesday Blitz"]
[Site "Chess.com"]
[Date "2020.10.20"]
[Round "1"]
[White "asms9699"]
[Black "novocane"]
[Result "1-0"]
[WhiteElo "2619"]
[BlackElo "2291"]
[TimeControl "180+1"]
[EndTime "10:05:50 PDT"]
[Termination "asms9699 won by resignation"]

1. c4 {[%clk 0:03:00.9]} 1... e5 {[%clk 0:02:59.4]} 2. g3 {[%clk 0:03:01.1]}
2... c6 {[%clk 0:02:59.4]} 3. d4 {[%clk 0:03:00.7]} 3... e4 {[%clk 0:02:58.8]}
4. Bg2 {[%clk 0:03:00.6]} 4... d5 {[%clk 0:02:58.7]} 5. Nc3 {[%clk 0:03:01.1]}
5... Nf6 {[%clk 0:02:56.2]} 6. Bg5 {[%clk 0:03:01.6]} 6... Nbd7 {[%clk
0:02:23.9]} 7. f3 {[%clk 0:02:53.8]} 7... exf3 {[%clk 0:02:19.3]} 8. Nxf3 {[%clk
0:02:54.7]} 8... Be7 {[%clk 0:02:18.1]} 9. O-O {[%clk 0:02:53.4]} 9... O-O
{[%clk 0:02:18.1]} 10. cxd5 {[%clk 0:02:50.8]} 10... Nxd5 {[%clk 0:02:09]} 11.
Bxe7 {[%clk 0:02:50.3]} 11... Nxe7 {[%clk 0:02:02.9]} 12. e4 {[%clk 0:02:49.6]}
12... Nf6 {[%clk 0:02:02.4]} 13. Qd3 {[%clk 0:02:47]} 13... b6 {[%clk
0:01:45.5]} 14. Rad1 {[%clk 0:02:41.2]} 14... Bb7 {[%clk 0:01:44.7]} 15. Ng5
{[%clk 0:02:34.1]} 15... h6 {[%clk 0:01:40.4]} 16. e5 {[%clk 0:02:33.8]} 16...
hxg5 {[%clk 0:01:26.6]} 17. exf6 {[%clk 0:02:29.1]} 17... gxf6 {[%clk 0:00:49]}
18. Rxf6 {[%clk 0:02:30]} 18... Ng6 {[%clk 0:00:46.2]} 19. Rdf1 {[%clk
0:02:17.7]} 19... Nf4 {[%clk 0:00:46.1]} 20. Qf5 {[%clk 0:02:07.6]} 20... Ne6
{[%clk 0:00:35.6]} 21. d5 {[%clk 0:01:56.1]} 21... cxd5 {[%clk 0:00:32.9]} 22.
Nxd5 {[%clk 0:01:47]} 22... Rc8 {[%clk 0:00:24.7]} 23. Rxf7 {[%clk 0:01:31.1]}
23... Rxf7 {[%clk 0:00:18.9]} 24. Qxf7+ {[%clk 0:01:32]} 24... Kh8 {[%clk
0:00:13.1]} 25. Qxe6 {[%clk 0:01:31.6]} 25... Rc5 {[%clk 0:00:08.6]} 26. Qh6+
{[%clk 0:01:27.5]} 26... Kg8 {[%clk 0:00:09]} 27. Nf6+ {[%clk 0:01:28]} 27...
Kf7 {[%clk 0:00:04.7]} 28. Ne4+ {[%clk 0:01:26.8]} 28... Ke8 {[%clk 0:00:02.2]}
1-0

[Event "*** Titled Tuesday Blitz"]
[Site "Chess.com"]
[Date "2020.10.20"]
[Round "1"]
[White "lelya96"]
[Black "RestartingChess"]
[Result "0-1"]
[WhiteElo "2183"]
[BlackElo "2524"]
[TimeControl "180+1"]
[EndTime "10:05:53 PDT"]
[Termination "RestartingChess won by resignation"]

1. e4 {[%clk 0:02:58.8]} 1... Nf6 {[%clk 0:03:00]} 2. e5 {[%clk 0:02:58.4]} 2...
Nd5 {[%clk 0:03:00.7]} 3. d4 {[%clk 0:02:58.3]} 3... d6 {[%clk 0:02:59.6]} 4.
Nf3 {[%clk 0:02:59.2]} 4... g6 {[%clk 0:02:59.7]} 5. Be2 {[%clk 0:02:58.2]} 5...
Bg7 {[%clk 0:02:59.9]} 6. O-O {[%clk 0:02:57.2]} 6... O-O {[%clk 0:03:00.3]} 7.
c4 {[%clk 0:02:56.8]} 7... Nb6 {[%clk 0:03:00.7]} 8. exd6 {[%clk 0:02:56.6]}
8... exd6 {[%clk 0:03:01.6]} 9. Nc3 {[%clk 0:02:56.1]} 9... Bf5 {[%clk
0:03:01.9]} 10. Be3 {[%clk 0:02:54.8]} 10... Nc6 {[%clk 0:03:02.3]} 11. Rc1
{[%clk 0:02:53.8]} 11... d5 {[%clk 0:03:00.5]} 12. c5 {[%clk 0:02:48.1]} 12...
Nc4 {[%clk 0:03:01]} 13. Bxc4 {[%clk 0:02:39.8]} 13... dxc4 {[%clk 0:03:01.9]}
14. d5 {[%clk 0:02:40]} 14... Nb4 {[%clk 0:02:59.4]} 15. Bg5 {[%clk 0:02:33.9]}
15... Qd7 {[%clk 0:02:52.6]} 16. a3 {[%clk 0:02:05.1]} 16... Nd3 {[%clk
0:02:48.4]} 17. Rc2 {[%clk 0:01:59.5]} 17... Nxc5 {[%clk 0:02:40.7]} 18. Rd2
{[%clk 0:01:55.6]} 18... Nb3 {[%clk 0:02:40.8]} 19. Nd4 {[%clk 0:01:43.6]} 19...
Nxd2 {[%clk 0:02:27.1]} 20. Qxd2 {[%clk 0:01:41.7]} 20... Bd3 {[%clk 0:02:27.5]}
21. Be3 {[%clk 0:01:27.4]} 21... Bxf1 {[%clk 0:02:24.2]} 22. Kxf1 {[%clk
0:01:28.3]} 22... Rfe8 {[%clk 0:02:19.5]} 23. g3 {[%clk 0:01:27.1]} 23... Qh3+
{[%clk 0:02:19.4]} 24. Kg1 {[%clk 0:01:26.8]} 24... Re7 {[%clk 0:02:15.6]} 25.
Bg5 {[%clk 0:01:16.6]} 25... f6 {[%clk 0:02:00.7]} 26. Be3 {[%clk 0:01:14.9]}
26... Rae8 {[%clk 0:02:00.5]} 27. Nf3 {[%clk 0:01:13.8]} 27... Qf5 {[%clk
0:01:55.3]} 28. Kg2 {[%clk 0:01:10.1]} 28... Qd3 {[%clk 0:01:55.6]} 29. Qc1
{[%clk 0:01:07]} 29... Rxe3 {[%clk 0:01:54.2]} 30. fxe3 {[%clk 0:01:05.4]} 30...
Rxe3 {[%clk 0:01:55.1]} 31. Nh4 {[%clk 0:00:57.6]} 31... f5 {[%clk 0:01:51.8]}
32. Nb5 {[%clk 0:00:39.8]} 32... Re2+ {[%clk 0:01:43.9]} 33. Kh3 {[%clk
0:00:39.1]} 33... Qc2 {[%clk 0:01:18.7]} 34. Qg1 {[%clk 0:00:32.4]} 34... Qe4
{[%clk 0:01:10.4]} 0-1

[Event "*** Titled Tuesday Blitz"]
[Site "Chess.com"]
[Date "2020.10.20"]
[Round "1"]
[White "maximnovik"]
[Black "oogee"]
[Result "1-0"]
[WhiteElo "2523"]
[BlackElo "2179"]
[TimeControl "180+1"]
[EndTime "10:05:55 PDT"]
[Termination "maximnovik won on time"]

1. d4 {[%clk 0:03:00.2]} 1... Nf6 {[%clk 0:02:53]} 2. c3 {[%clk 0:02:57.8]} 2...
d5 {[%clk 0:02:45.6]} 3. Bf4 {[%clk 0:02:56.1]} 3... c5 {[%clk 0:02:42.5]} 4. e3
{[%clk 0:02:53.5]} 4... Nc6 {[%clk 0:02:36.1]} 5. Nd2 {[%clk 0:02:50.4]} 5... g6
{[%clk 0:02:07.1]} 6. Nh3 {[%clk 0:02:46.6]} 6... Bxh3 {[%clk 0:01:51.5]} 7.
gxh3 {[%clk 0:02:45.3]} 7... Bg7 {[%clk 0:01:44.9]} 8. h4 {[%clk 0:02:35.6]}
8... Nh5 {[%clk 0:01:29.2]} 9. Bg3 {[%clk 0:02:34.1]} 9... e5 {[%clk 0:01:19.9]}
10. dxc5 {[%clk 0:02:25.8]} 10... O-O {[%clk 0:01:14.5]} 11. Be2 {[%clk
0:02:25.1]} 11... Nxg3 {[%clk 0:01:06.6]} 12. hxg3 {[%clk 0:02:24.2]} 12... d4
{[%clk 0:01:06.5]} 13. cxd4 {[%clk 0:02:21.7]} 13... exd4 {[%clk 0:01:06.1]} 14.
e4 {[%clk 0:02:21.3]} 14... d3 {[%clk 0:01:01.1]} 15. Bf3 {[%clk 0:02:19.2]}
15... Bxb2 {[%clk 0:00:39.8]} 16. Rb1 {[%clk 0:02:18]} 16... Bc3 {[%clk
0:00:30.3]} 17. O-O {[%clk 0:02:15.9]} 17... Nd4 {[%clk 0:00:27]} 18. Nb3 {[%clk
0:02:08.8]} 18... Nxf3+ {[%clk 0:00:25.9]} 19. Qxf3 {[%clk 0:02:08.4]} 19... Rc8
{[%clk 0:00:23.9]} 20. Rfd1 {[%clk 0:02:07.7]} 20... Qf6 {[%clk 0:00:19.4]} 21.
Qxf6 {[%clk 0:02:00.8]} 21... Bxf6 {[%clk 0:00:19]} 22. Rxd3 {[%clk 0:02:00.8]}
22... Rfe8 {[%clk 0:00:18.8]} 23. f3 {[%clk 0:01:58.9]} 23... Re7 {[%clk
0:00:17.6]} 24. Kg2 {[%clk 0:01:44.3]} 24... b6 {[%clk 0:00:16.7]} 25. Rc1
{[%clk 0:01:40.2]} 25... Rec7 {[%clk 0:00:12.7]} 26. Rd5 {[%clk 0:01:38.4]}
26... Be7 {[%clk 0:00:12.4]} 27. cxb6 {[%clk 0:01:29]} 27... Rc2+ {[%clk
0:00:11.4]} 28. Rxc2 {[%clk 0:01:26.5]} 28... Rc3 {[%clk 0:00:09.8]} 29. Rxc3
{[%clk 0:01:25]} 1-0

[Event "*** Titled Tuesday Blitz"]
[Site "Chess.com"]
[Date "2020.10.20"]
[Round "1"]
[White "niki_2003"]
[Black "Ajedrez_con_German"]
[Result "0-1"]
[WhiteElo "1812"]
[BlackElo "2458"]
[TimeControl "180+1"]
[EndTime "10:05:55 PDT"]
[Termination "Ajedrez_con_German won by resignation"]

1. d4 {[%clk 0:03:00.9]} 1... d5 {[%clk 0:02:53.7]} 2. c4 {[%clk 0:02:59.6]}
2... c6 {[%clk 0:02:53]} 3. Nf3 {[%clk 0:02:57.4]} 3... Nf6 {[%clk 0:02:50.3]}
4. g3 {[%clk 0:02:57.5]} 4... Bf5 {[%clk 0:02:48.5]} 5. Bg2 {[%clk 0:02:57.2]}
5... e6 {[%clk 0:02:47.3]} 6. O-O {[%clk 0:02:57.3]} 6... Nbd7 {[%clk
0:02:46.1]} 7. Nbd2 {[%clk 0:02:56.4]} 7... h6 {[%clk 0:02:45.3]} 8. b3 {[%clk
0:02:56.9]} 8... Be7 {[%clk 0:02:44]} 9. Bb2 {[%clk 0:02:57.4]} 9... O-O {[%clk
0:02:43.8]} 10. Re1 {[%clk 0:02:57.9]} 10... Ne4 {[%clk 0:02:42.8]} 11. Nxe4
{[%clk 0:02:55.7]} 11... Bxe4 {[%clk 0:02:42.5]} 12. Nd2 {[%clk 0:02:55.8]}
12... Bxg2 {[%clk 0:02:41.7]} 13. Kxg2 {[%clk 0:02:54.5]} 13... Nf6 {[%clk
0:02:42.6]} 14. f3 {[%clk 0:02:52.8]} 14... Qa5 {[%clk 0:02:39.4]} 15. e4 {[%clk
0:02:52]} 15... Bb4 {[%clk 0:02:24.9]} 16. e5 {[%clk 0:02:20.9]} 16... Bxd2
{[%clk 0:02:15.7]} 17. Re2 {[%clk 0:02:20]} 17... Bg5 {[%clk 0:02:05.4]} 18. h4
{[%clk 0:02:01.4]} 18... Bxh4 {[%clk 0:02:01.6]} 19. gxh4 {[%clk 0:02:00.2]}
19... Nd7 {[%clk 0:01:55.6]} 20. Kh3 {[%clk 0:01:59.5]} 20... f6 {[%clk
0:01:50.6]} 21. Rg2 {[%clk 0:01:48.4]} 21... fxe5 {[%clk 0:01:42.9]} 22. dxe5
{[%clk 0:01:43.6]} 22... Rf7 {[%clk 0:01:33.1]} 23. Bc1 {[%clk 0:01:28.2]} 23...
Kh8 {[%clk 0:01:20.8]} 24. f4 {[%clk 0:01:27.2]} 24... Qc3+ {[%clk 0:01:12]} 25.
Kh2 {[%clk 0:01:24.4]} 25... Qxa1 {[%clk 0:01:09.4]} 26. Qh5 {[%clk 0:01:23.7]}
26... Raf8 {[%clk 0:00:54.6]} 27. f5 {[%clk 0:01:19.5]} 27... Qxc1 {[%clk
0:00:47.9]} 28. fxe6 {[%clk 0:01:13.2]} 28... Qf4+ {[%clk 0:00:37.7]} 29. Kh1
{[%clk 0:01:10.3]} 29... Qf1+ {[%clk 0:00:30.3]} 30. Kh2 {[%clk 0:01:09.3]}
30... Rf2 {[%clk 0:00:25.8]} 0-1